fUST/lending_fUST_20250628
["ID","MTS","AMOUNT","RATE_DAILY","PERIOD"]
[368169805,1751046646780,-460.0,0.0002,2]
[368169806,1751046646789,-1112.38,0.0002,2]
[368169807,1751046646799,-460.0,0.0002,2]
[368169808,1751046646809,-460.0,0.0002,2]
[368169809,1751046646819,-4582.07,0.0002,2]
[368169810,1751046646830,-460.0,0.0002,2]
[368169811,1751046646840,-567.65,0.0002,2]
[368169812,1751046646850,-1019.81,0.0002,2]
[368169813,1751046646859,-2929.41,0.0002,2]
[368169814,1751046646869,-2524.19,0.0002,2]
[368169815,1751046646879,-1858.88,0.0002,2]
[368169816,1751046646888,-460.0,0.0002,2]
[368169817,1751046646897,-591.83,0.0002,2]
[368169818,1751046646906,-160.0,0.00020006,2]
[368169819,1751046646916,-12562.41216491,0.00020006,2]
[368169820,1751046646925,-847.04181546,0.00020006,2]
[368169821,1751046646939,-230.26210603,0.00020006,2]
[368169822,1751046646953,-160.0,0.00020006,2]
[368169823,1751046646968,-213.75309343,0.00020006,2]
[368169824,1751046646981,-160.0,0.00020006,2]
[368169825,1751046646992,-836.98798914,0.00020006,2]
[368169826,1751046647006,-160.0,0.00020006,2]
[368169827,1751046647020,-160.0,0.00020006,2]
[368169828,1751046647034,-160.0,0.00020006,2]
[368169829,1751046647047,-160.0,0.00020006,2]
[368169830,1751046647061,-160.0,0.00020006,2]
[368169831,1751046647076,-160.0,0.00020006,2]
[368169832,1751046647089,-214.91804724,0.00020006,2]
[368169833,1751046647101,-1050.86069672,0.00020021,2]
[368169834,1751046647114,-639.65117094,0.0002005,2]
[368169835,1751046647126,-344.8429154,0.00020055,2]
[368169836,1751046647141,-500.0,0.00020055,2]
[368169837,1751046647154,-7046.29524436,0.00020107,2]
[368169838,1751046647167,-1644.33996854,0.00020255,2]
[368169839,1751046647178,-565.29893631,0.00020268,2]
[368169840,1751046647189,-500.0,0.00020268,2]
[368169841,1751046647201,-1500.0,0.00020268,2]
[368169842,1751046647214,-425.31093451,0.00020268,2]
[368169843,1751046647227,-500.0,0.00020268,2]
[368169844,1751046647241,-1000.0,0.00020269,2]
[368169845,1751046647255,-460.0,0.00020273,2]
[368169846,1751046647267,-460.0,0.00020273,2]
[368169847,1751046647283,-460.0,0.00020273,2]
[368169848,1751046647293,-460.0,0.00020273,2]
[368169849,1751046647304,-460.0,0.00020273,2]
[368169850,1751046647316,-460.0,0.00020273,2]
[368169851,1751046647330,-622.33,0.00020273,2]
[368169852,1751046647344,-460.0,0.00020273,2]
[368169853,1751046647356,-460.0,0.00020273,2]
[368169854,1751046647367,-460.0,0.00020273,2]
[368169855,1751046647380,-460.0,0.00020273,2]
[368169856,1751046647392,-460.0,0.00020273,2]
[368169857,1751046647406,-657.78,0.00020273,2]
[368169858,1751046647417,-496.85,0.00020273,2]
[368169859,1751046647428,-460.0,0.00020273,2]
[368169860,1751046647439,-574.34,0.00020273,2]
[368169861,1751046647451,-460.0,0.00020273,2]
[368169862,1751046647462,-568.55,0.00020273,2]
[368169863,1751046647474,-460.0,0.00020273,2]
[368169864,1751046647486,-460.0,0.00020273,2]
[368169865,1751046647497,-460.0,0.00020273,2]
[368169866,1751046647509,-460.0,0.00020273,2]
[368169867,1751046647520,-1054.09,0.00020273,2]
[368169868,1751046647531,-460.0,0.00020273,2]
[368169869,1751046647543,-504.12,0.00020273,2]
[368169870,1751046647554,-1281.15,0.00020273,2]
[368169871,1751046647566,-3619.92,0.00020273,2]
[368169872,1751046647578,-460.0,0.00020273,2]
[368169873,1751046647590,-4046.67,0.00020273,2]
[368169874,1751046647601,-460.0,0.00020273,2]
[368169875,1751046647612,-1459.3,0.00020273,2]
[368169876,1751046647624,-650.14,0.00020273,2]
[368169877,1751046647635,-460.0,0.00020273,2]
[368169878,1751046647646,-1333.17,0.00020273,2]
[368169879,1751046647659,-460.0,0.00020273,2]
[368169880,1751046647672,-460.0,0.00020273,2]
[368169881,1751046647683,-479.97,0.00020273,2]
[368169882,1751046647695,-460.0,0.00020273,2]
[368169883,1751046647708,-460.0,0.00020273,2]
[368169884,1751046647719,-2029.99,0.00020273,2]
[368169885,1751046647730,-524.0,0.00020273,2]
[368169886,1751046647743,-460.0,0.00020273,2]
[368169887,1751046647755,-999.78,0.00020273,2]
[368169888,1751046647767,-524.5,0.00020273,2]
[368169889,1751046647778,-460.0,0.00020273,2]
[368169890,1751046647790,-1574.26,0.00020273,2]
[368169891,1751046647801,-460.0,0.00020273,2]
[368169892,1751046647814,-477.58,0.00020273,2]
[368169893,1751046647827,-768.69,0.00020273,2]
[368169894,1751046647839,-1267.96,0.00020273,2]
[368169895,1751046647851,-338.774376,0.00020273,2]
[368169896,1751046647863,-492.55,0.00020273,2]
[368169897,1751046647875,-489.44,0.00020273,2]
[368169898,1751046647887,-583.94,0.00020273,2]
[368169899,1751046647900,-460.0,0.00020273,2]
[368169900,1751046647912,-460.0,0.00020273,2]
[368169901,1751046647923,-604.2,0.00020273,2]
[368169902,1751046647935,-460.0,0.00020273,2]
[368169903,1751046647946,-460.0,0.00020273,2]
[368169904,1751046647958,-1861.84,0.00020273,2]
[368169905,1751046647969,-774.45,0.00020273,2]
[368169906,1751046647981,-520.38,0.00020273,2]
[368169907,1751046647992,-663.49,0.00020273,2]
[368169908,1751046648003,-555.19,0.00020273,2]
[368169909,1751046648015,-2959.28,0.00020273,2]
[368169910,1751046648026,-460.0,0.00020273,2]
[368169911,1751046648039,-460.0,0.00020273,2]
[368169912,1751046648051,-460.0,0.00020273,2]
[368169913,1751046648064,-1582.32,0.00020273,2]
[368169914,1751046648078,-460.0,0.00020273,2]
[368169915,1751046648091,-5244.0,0.00020273,2]
[368169916,1751046648103,-460.0,0.00020273,2]
[368169917,1751046648116,-460.0,0.00020273,2]
[368169918,1751046648130,-681.07,0.00020273,2]
[368169919,1751046648141,-460.0,0.00020273,2]
[368169920,1751046648151,-598.8,0.00020273,2]
[368169921,1751046648308,-460.0,0.00020273,2]
[368169922,1751046648329,-3684.07,0.00020273,2]
[368169923,1751046648340,-683.38,0.00020273,2]
[368169924,1751046648350,-1338.12,0.00020273,2]
[368169925,1751046648360,-460.0,0.00020273,2]
[368169926,1751046648370,-648.72,0.00020273,2]
[368169927,1751046648380,-962.44,0.00020273,2]
[368169928,1751046648389,-460.0,0.00020273,2]
[368169929,1751046648399,-460.0,0.00020273,2]
[368169930,1751046648408,-1112.38,0.00020273,2]
[368169931,1751046648418,-460.0,0.00020273,2]
[368169932,1751046648428,-460.0,0.00020273,2]
[368169933,1751046648438,-4582.07,0.00020273,2]
[368169934,1751046648449,-460.0,0.00020273,2]
[368169935,1751046648459,-567.65,0.00020273,2]
[368169936,1751046648468,-1019.81,0.00020273,2]
[368169937,1751046648478,-2929.41,0.00020273,2]
[368169938,1751046648487,-2524.19,0.00020273,2]
[368169939,1751046648497,-1858.88,0.00020273,2]
[368169940,1751046648507,-460.0,0.00020273,2]
[368169941,1751046648516,-1117.17652524,0.00020329,2]
[368169942,1751046648526,-320.42172575,0.00020348,2]
[368169943,1751046648535,-7046.29524436,0.00020348,3]
[368169944,1751046648545,-207.4,0.00020423,2]
[368169945,1751046648555,-5000.0,0.00020423,2]
[368169946,1751046648566,-500.0,0.00020423,2]
[368169947,1751046648575,-500.0,0.00020423,2]
[368169948,1751046648584,-500.0,0.00020423,2]
[368169949,1751046648594,-666.0,0.00020423,2]
[368169950,1751046648603,-500.0,0.00020423,2]
[368169951,1751046648612,-500.0,0.00020423,2]
[368169952,1751046648622,-151.0,0.00020423,2]
[368169953,1751046648632,-500.0,0.00020423,2]
[368169954,1751046648641,-151.0,0.00020423,2]
[368169955,1751046648651,-500.0,0.00020423,2]
[368169956,1751046648662,-500.0,0.00020423,2]
[368169957,1751046648673,-291.5243871,0.00020423,2]
[368169958,1751046648682,-3906.52055875,0.00020423,2]
[368169959,1751046648692,-500.0,0.00020423,2]
[368169960,1751046648701,-500.0,0.00020423,2]
[368169961,1751046648713,-500.0,0.00020423,2]
[368169962,1751046648722,-500.0,0.00020423,2]
[368169963,1751046648732,-500.0,0.00020423,2]
[368169964,1751046648743,-182.3598853,0.00020423,2]
[368169965,1751046648753,-500.0,0.00020423,2]
[368169966,1751046648764,-500.0,0.00020423,2]
[368169967,1751046648774,-500.0,0.00020423,2]
[368169968,1751046648783,-563.32945425,0.00020423,2]
[368169969,1751046648793,-690.642,0.00020478,2]
[368169970,1751046648803,-153.0,0.00020493,2]
[368169971,1751046648814,-153.0,0.00020493,2]
[368169972,1751046648824,-153.0,0.00020493,2]
[368169973,1751046648835,-151.0,0.000205,4]
[368169974,1751046648845,-160.0,0.00020521,3]
[368169975,1751046648854,-716.195754,0.00020533,2]
[368169976,1751046648864,-1143.66,0.00020538,3]
[368169977,1751046648875,-571.84,0.00020538,3]
[368169978,1751046648885,-847.04181546,0.00020538,3]
[368169979,1751046648895,-213.75309343,0.00020538,3]
[368169980,1751046648905,-460.0,0.00020547,2]
[368169981,1751046648914,-460.0,0.00020547,2]
[368169982,1751046648923,-460.0,0.00020547,2]
[368169983,1751046648933,-460.0,0.00020547,2]
[368169984,1751046648943,-460.0,0.00020547,2]
[368169985,1751046648952,-460.0,0.00020547,2]
[368169986,1751046648962,-622.33,0.00020547,2]
[368169987,1751046648971,-147.2085567,0.00020547,2]
[368169988,1751046649151,-312.7914433,0.00020547,2]
[368169989,1751046649161,-594.53,0.00020547,2]
[368169990,1751046649171,-460.0,0.00020547,2]
[368169991,1751046649180,-657.78,0.00020547,2]
[368169992,1751046649190,-496.85,0.00020547,2]
[368169993,1751046649199,-460.0,0.00020547,2]
[368169994,1751046649209,-460.0,0.00020547,2]
[368169995,1751046649218,-568.55,0.00020547,2]
[368169996,1751046649227,-460.0,0.00020547,2]
[368169997,1751046649237,-460.0,0.00020547,2]
[368169998,1751046649247,-460.0,0.00020547,2]
[368169999,1751046649256,-460.0,0.00020547,2]
[368170000,1751046649265,-1054.09,0.00020547,2]
[368170001,1751046649275,-460.0,0.00020547,2]
[368170002,1751046649285,-504.12,0.00020547,2]
[368170003,1751046649295,-1281.15,0.00020547,2]
[368170004,1751046649304,-3619.92,0.00020547,2]
[368170005,1751046649314,-460.0,0.00020547,2]
[368170006,1751046649323,-4046.67,0.00020547,2]
[368170007,1751046649334,-460.0,0.00020547,2]
[368170008,1751046649344,-1459.3,0.00020547,2]
[368170009,1751046649353,-650.14,0.00020547,2]
[368170010,1751046649362,-460.0,0.00020547,2]
[368170011,1751046649372,-1333.17,0.00020547,2]
[368170012,1751046649381,-460.0,0.00020547,2]
[368170013,1751046649391,-460.0,0.00020547,2]
[368170014,1751046649401,-479.97,0.00020547,2]
[368170015,1751046649411,-460.0,0.00020547,2]
[368170016,1751046649420,-460.0,0.00020547,2]
[368170017,1751046649431,-2029.99,0.00020547,2]
[368170018,1751046649440,-524.0,0.00020547,2]
[368170019,1751046649450,-460.0,0.00020547,2]
[368170020,1751046649459,-999.78,0.00020547,2]
[368170021,1751046649468,-524.5,0.00020547,2]
[368170022,1751046649477,-460.0,0.00020547,2]
[368170023,1751046649487,-1574.26,0.00020547,2]
[368170024,1751046649496,-460.0,0.00020547,2]
[368170025,1751046649506,-477.58,0.00020547,2]
[368170026,1751046649515,-768.69,0.00020547,2]
[368170027,1751046649524,-1267.96,0.00020547,2]
[368170028,1751046649534,-492.55,0.00020547,2]
[368170029,1751046649543,-489.44,0.00020547,2]
[368170030,1751046649553,-583.94,0.00020547,2]
[368170031,1751046649564,-460.0,0.00020547,2]
[368170032,1751046649574,-460.0,0.00020547,2]
[368170033,1751046649583,-604.2,0.00020547,2]
[368170034,1751046649592,-460.0,0.00020547,2]
[368170035,1751046649602,-460.0,0.00020547,2]
[368170036,1751046649611,-1861.84,0.00020547,2]
[368170037,1751046649621,-774.45,0.00020547,2]
[368170038,1751046649631,-520.38,0.00020547,2]
[368170039,1751046649640,-663.49,0.00020547,2]
[368170040,1751046649649,-555.19,0.00020547,2]
[368170041,1751046649660,-2959.28,0.00020547,2]
[368170042,1751046649671,-460.0,0.00020547,2]
[368170043,1751046649681,-460.0,0.00020547,2]
[368170044,1751046649690,-460.0,0.00020547,2]
[368170045,1751046649700,-1582.32,0.00020547,2]
[368170046,1751046649710,-5244.0,0.00020547,2]
[368170047,1751046649719,-460.0,0.00020547,2]
[368170048,1751046649728,-460.0,0.00020547,2]
[368170049,1751046649739,-681.07,0.00020547,2]
[368170050,1751046649749,-460.0,0.00020547,2]
[368170051,1751046649759,-598.8,0.00020547,2]
[368170052,1751046649768,-460.0,0.00020547,2]
[368170053,1751046649777,-3684.07,0.00020547,2]
[368170054,1751046649786,-683.38,0.00020547,2]
[368170055,1751046649795,-1338.12,0.00020547,2]
[368170056,1751046649805,-0.81570156,0.00020547,2]
[368170057,1751046649818,-459.18429844,0.00020547,2]
[368170058,1751046649828,-648.72,0.00020547,2]
[368170059,1751046649837,-962.44,0.00020547,2]
[368170060,1751046649846,-460.0,0.00020547,2]
[368170061,1751046649856,-460.0,0.00020547,2]
[368170062,1751046649866,-1112.38,0.00020547,2]
[368170063,1751046649876,-460.0,0.00020547,2]
[368170064,1751046649886,-460.0,0.00020547,2]
[368170065,1751046649895,-1067.64242539,0.00020547,2]
[368170066,1751046649907,-3514.42757461,0.00020547,2]
[368170067,1751046649917,-460.0,0.00020547,2]
[368170068,1751046649926,-567.65,0.00020547,2]
[368170069,1751046649936,-1019.81,0.00020547,2]
[368170070,1751046649946,-2929.41,0.00020547,2]
[368170071,1751046649956,-2524.19,0.00020547,2]
[368170072,1751046649965,-1858.88,0.00020547,2]
[368170073,1751046649975,-460.0,0.00020547,2]
[368170074,1751046649984,-742.6949969,0.00020588,2]
[368170075,1751046649994,-923.78686849,0.0002059,3]
[368170076,1751046650161,-591.83,0.00020273,2]
[368170077,1751046650171,-591.83,0.00020547,2]
[368170078,1751046650181,-6122.50837587,0.0002059,3]
[368170079,1751046650190,-6893.83162335,0.00020613,2]
[368170080,1751046650206,-3635.60762396,0.00020613,2]
[368170081,1751046650216,-877.3689931,0.00020643,2]
[368170082,1751046650225,-149.62686299,0.00020675,2]
[368170083,1751046650236,-4273.37313701,0.00020675,2]
[368170084,1751046650246,-1926.34,0.000207,2]
[368170085,1751046650255,-151.0,0.000207,4]
[368170086,1751046650265,-500.0,0.00020816,2]
[368170087,1751046650274,-460.0,0.00020821,2]
[368170088,1751046650283,-460.0,0.00020821,2]
[368170089,1751046650293,-460.0,0.00020821,2]
[368170090,1751046650301,-460.0,0.00020821,2]
[368170091,1751046650311,-460.0,0.00020821,2]
[368170092,1751046650321,-622.33,0.00020821,2]
[368170093,1751046650331,-460.0,0.00020821,2]
[368170094,1751046650340,-460.0,0.00020821,2]
[368170095,1751046650349,-657.78,0.00020821,2]
[368170096,1751046650359,-496.85,0.00020821,2]
[368170097,1751046650368,-460.0,0.00020821,2]
[368170098,1751046650377,-460.0,0.00020821,2]
[368170099,1751046650387,-568.55,0.00020821,2]
[368170100,1751046650396,-460.0,0.00020821,2]
[368170101,1751046650407,-161.47060421,0.00020821,2]
[368170102,1751046650418,-460.0,0.00020821,2]
[368170103,1751046650428,-460.0,0.00020821,2]
[368170104,1751046650437,-1054.09,0.00020821,2]
[368170105,1751046650446,-595.65,0.00020821,2]
[368170106,1751046650456,-504.12,0.00020821,2]
[368170107,1751046650466,-1281.15,0.00020821,2]
[368170108,1751046650475,-3619.92,0.00020821,2]
[368170109,1751046650484,-460.0,0.00020821,2]
[368170110,1751046650493,-4046.67,0.00020821,2]
[368170111,1751046650502,-460.0,0.00020821,2]
[368170112,1751046650512,-1459.3,0.00020821,2]
[368170113,1751046650521,-650.14,0.00020821,2]
[368170114,1751046650530,-277.66,0.00020821,2]
[368170115,1751046650539,-1333.17,0.00020821,2]
[368170116,1751046650549,-460.0,0.00020821,2]
[368170117,1751046650559,-479.97,0.00020821,2]
[368170118,1751046650570,-325.83389898,0.00020821,2]
[368170119,1751046650580,-460.0,0.00020821,2]
[368170120,1751046650589,-2029.99,0.00020821,2]
[368170121,1751046650599,-524.0,0.00020821,2]
[368170122,1751046650608,-460.0,0.00020821,2]
[368170123,1751046650618,-999.78,0.00020821,2]
[368170124,1751046650627,-524.5,0.00020821,2]
[368170125,1751046650643,-460.0,0.00020821,2]
[368170126,1751046650653,-287.76496417,0.00020821,2]
[368170127,1751046650669,-1574.26,0.00020821,2]
[368170128,1751046650678,-477.58,0.00020821,2]
[368170129,1751046650688,-768.69,0.00020821,2]
[368170130,1751046650698,-1267.96,0.00020821,2]
[368170131,1751046650708,-492.55,0.00020821,2]
[368170132,1751046650718,-489.44,0.00020821,2]
[368170133,1751046650727,-583.94,0.00020821,2]
[368170134,1751046650737,-460.0,0.00020821,2]
[368170135,1751046650747,-460.0,0.00020821,2]
[368170136,1751046650756,-604.2,0.00020821,2]
[368170137,1751046650766,-460.0,0.00020821,2]
[368170138,1751046650776,-460.0,0.00020821,2]
[368170139,1751046650785,-1410.75067751,0.00020821,2]
[368170140,1751046651235,-249.69076425,0.00019178,2]
[368170141,1751046651451,-460.0,0.00019178,2]
[368170142,1751046651461,-460.0,0.00019452,2]
[368170143,1751046651470,-451.08932249,0.00020821,2]
[368170144,1751046651480,-774.45,0.00020821,2]
[368170145,1751046651489,-520.38,0.00020821,2]
[368170146,1751046651498,-663.49,0.00020821,2]
[368170147,1751046651508,-555.19,0.00020821,2]
[368170148,1751046651518,-2959.28,0.00020821,2]
[368170149,1751046651527,-460.0,0.00020821,2]
[368170150,1751046651537,-460.0,0.00020821,2]
[368170151,1751046651546,-1582.32,0.00020821,2]
[368170152,1751046651556,-5244.0,0.00020821,2]
[368170153,1751046651566,-460.0,0.00020821,2]
[368170154,1751046651575,-460.0,0.00020821,2]
[368170155,1751046651585,-681.07,0.00020821,2]
[368170156,1751046651595,-460.0,0.00020821,2]
[368170157,1751046651604,-598.8,0.00020821,2]
[368170158,1751046651615,-460.0,0.00020821,2]
[368170159,1751046651625,-3684.07,0.00020821,2]
[368170160,1751046651634,-683.38,0.00020821,2]
[368170161,1751046651644,-1338.12,0.00020821,2]
[368170162,1751046651655,-460.0,0.00020821,2]
[368170163,1751046651668,-648.72,0.00020821,2]
[368170164,1751046651677,-962.44,0.00020821,2]
[368170165,1751046651686,-460.0,0.00020821,2]
[368170166,1751046651695,-460.0,0.00020821,2]
[368170167,1751046651706,-1112.38,0.00020821,2]
[368170168,1751046651715,-460.0,0.00020821,2]
[368170169,1751046651725,-460.0,0.00020821,2]
[368170170,1751046651735,-4582.07,0.00020821,2]
[368170171,1751046651744,-460.0,0.00020821,2]
[368170172,1751046651754,-567.65,0.00020821,2]
[368170173,1751046651763,-1019.81,0.00020821,2]
[368170174,1751046651773,-2929.41,0.00020821,2]
[368170175,1751046651782,-2524.19,0.00020821,2]
[368170176,1751046651790,-1858.88,0.00020821,2]
[368170177,1751046651799,-460.0,0.00020821,2]
[368170178,1751046651809,-591.83,0.00020821,2]
[368170179,1751046651820,-7046.29524436,0.00020831,4]
[368170180,1751046651829,-1644.33996854,0.00020843,2]
[368170181,1751046651838,-500.0,0.00020844,2]
[368170182,1751046651848,-420.0,0.00020888,2]
[368170183,1751046651858,-420.0,0.00020888,2]
[368170184,1751046651867,-300.0,0.00020888,2]
[368170185,1751046651876,-151.0,0.000209,4]
[368170186,1751046651886,-5000.0,0.00020971,2]
[368170187,1751046651896,-4423.0,0.00020976,2]
[368170188,1751046651905,-1680.0,0.0002099,2]
[368170189,1751046651914,-639.65117094,0.00021021,2]
[368170190,1751046651923,-7046.29524436,0.00021072,4]
[368170191,1751046651932,-13577.92668887,0.0002109,2]
[368170192,1751046651941,-460.0,0.00021095,2]
[368170193,1751046651951,-460.0,0.00021095,2]
[368170194,1751046651960,-460.0,0.00021095,2]
[368170195,1751046651969,-622.33,0.00021095,2]
[368170196,1751046651978,-460.0,0.00021095,2]
[368170197,1751046651987,-460.0,0.00021095,2]
[368170198,1751046651996,-657.78,0.00021095,2]
[368170199,1751046652006,-496.85,0.00021095,2]
[368170200,1751046652015,-460.0,0.00021095,2]
[368170201,1751046652024,-460.0,0.00021095,2]
[368170202,1751046652033,-151.0,0.00021095,2]
[368170203,1751046652042,-568.55,0.00021095,2]
[368170204,1751046652052,-460.0,0.00021095,2]
[368170205,1751046652061,-460.0,0.00021095,2]
[368170206,1751046652071,-460.0,0.00021095,2]
[368170207,1751046652080,-252.096972,0.00021095,2]
[368170208,1751046652090,-151.0,0.00021095,2]
[368170209,1751046652099,-504.12,0.00021095,2]
[368170210,1751046652110,-252.096972,0.00021095,2]
[368170211,1751046652119,-1281.15,0.00021095,2]
[368170212,1751046652128,-3619.92,0.00021095,2]
[368170213,1751046652137,-460.0,0.00021095,2]
[368170214,1751046652147,-4046.67,0.00021095,2]
[368170215,1751046652156,-1459.3,0.00021095,2]
[368170216,1751046652165,-151.0,0.00021095,2]
[368170217,1751046652174,-151.0,0.00021095,2]
[368170218,1751046652183,-650.14,0.00021095,2]
[368170219,1751046652192,-1333.17,0.00021095,2]
[368170220,1751046652202,-460.0,0.00021095,2]
[368170221,1751046652212,-479.97,0.00021095,2]
[368170222,1751046652221,-460.0,0.00021095,2]
[368170223,1751046652231,-2029.99,0.00021095,2]
[368170224,1751046652240,-524.0,0.00021095,2]
[368170225,1751046652250,-460.0,0.00021095,2]
[368170226,1751046652260,-999.78,0.00021095,2]
[368170227,1751046652269,-151.0,0.00021095,2]
[368170228,1751046652278,-524.5,0.00021095,2]
[368170229,1751046652287,-212.95537941,0.00021095,2]
[368170230,1751046652296,-1574.26,0.00021095,2]
[368170231,1751046652306,-477.58,0.00021095,2]
[368170232,1751046652317,-768.69,0.00021095,2]
[368170233,1751046652327,-1267.96,0.00021095,2]
[368170234,1751046652336,-260.67427,0.00021095,2]
[368170235,1751046652346,-492.55,0.00021095,2]
[368170236,1751046652356,-489.44,0.00021095,2]
[368170237,1751046652365,-583.94,0.00021095,2]
[368170238,1751046652375,-460.0,0.00021095,2]
[368170239,1751046652384,-256.966885,0.00021095,2]
[368170240,1751046652394,-460.0,0.00021095,2]
[368170241,1751046652404,-256.966885,0.00021095,2]
[368170242,1751046652414,-604.2,0.00021095,2]
[368170243,1751046652423,-460.0,0.00021095,2]
[368170244,1751046652432,-460.0,0.00021095,2]
[368170245,1751046652443,-1861.84,0.00021095,2]
[368170246,1751046652454,-774.45,0.00021095,2]
[368170247,1751046652467,-151.0,0.00021095,2]
[368170248,1751046652476,-520.38,0.00021095,2]
[368170249,1751046652486,-151.0,0.00021095,2]
[368170250,1751046652495,-663.49,0.00021095,2]
[368170251,1751046652504,-151.0,0.00021095,2]
[368170252,1751046652514,-555.19,0.00021095,2]
[368170253,1751046652524,-2959.28,0.00021095,2]
[368170254,1751046652533,-460.0,0.00021095,2]
[368170255,1751046652542,-1582.32,0.00021095,2]
[368170256,1751046652552,-5244.0,0.00021095,2]
[368170257,1751046652561,-460.0,0.00021095,2]
[368170258,1751046652578,-460.0,0.00021095,2]
[368170259,1751046652588,-260.996233,0.00021095,2]
[368170260,1751046652598,-681.07,0.00021095,2]
[368170261,1751046652608,-260.996233,0.00021095,2]
[368170262,1751046652617,-151.0,0.00021095,2]
[368170263,1751046652627,-460.0,0.00021095,2]
[368170264,1751046652637,-598.8,0.00021095,2]
[368170265,1751046652647,-460.0,0.00021095,2]
[368170266,1751046652656,-3684.07,0.00021095,2]
[368170267,1751046652669,-683.38,0.00021095,2]
[368170268,1751046652678,-1338.12,0.00021095,2]
[368170269,1751046652688,-151.0,0.00021095,2]
[368170270,1751046652697,-460.0,0.00021095,2]
[368170271,1751046652708,-648.72,0.00021095,2]
[368170272,1751046652718,-962.44,0.00021095,2]
[368170273,1751046652727,-208.893297,0.00021095,2]
[368170274,1751046652738,-460.0,0.00021095,2]
[368170275,1751046652748,-460.0,0.00021095,2]
[368170276,1751046652758,-1112.38,0.00021095,2]
[368170277,1751046652767,-460.0,0.00021095,2]
[368170278,1751046652777,-465.00230457,0.00021095,2]
[368170279,1751046652786,-4582.07,0.00021095,2]
[368170280,1751046652795,-460.0,0.00021095,2]
[368170281,1751046652804,-567.65,0.00021095,2]
[368170282,1751046652819,-1019.81,0.00021095,2]
[368170283,1751046652828,-522.825331,0.00021095,2]
[368170284,1751046652838,-2929.41,0.00021095,2]
[368170285,1751046652847,-522.825331,0.00021095,2]
[368170286,1751046652857,-2524.19,0.00021095,2]
[368170287,1751046652866,-1858.88,0.00021095,2]
[368170288,1751046652876,-460.0,0.00021095,2]
[368170289,1751046652885,-591.83,0.00021095,2]
[368170290,1751046652895,-329.0,0.00021095,2]
[368170291,1751046652904,-1762.0,0.00021151,2]
[368170292,1751046652915,-151.0,0.00021151,2]
[368170293,1751046652925,-329.0,0.00021197,2]
[368170294,1751046652934,-1762.0,0.00021235,2]
[368170295,1751046652944,-167.45607275,0.00021269,2]
[368170296,1751046652954,-1027.067,0.00021302,2]
[368170297,1751046652964,-7046.29524436,0.00021314,5]
[368170298,1751046652974,-2341.70212293,0.00021369,2]
[368170299,1751046652983,-460.66596798,0.00021369,2]
[368170300,1751046652993,-151.0,0.00021369,2]
[368170301,1751046653002,-294.807084,0.00021369,2]
[368170302,1751046653012,-294.807084,0.00021369,2]
[368170303,1751046653022,-957.69873308,0.00021369,2]
[368170304,1751046653032,-486.92491528,0.00021369,2]